bitfinex-derivatives/quotes_SOLF0:USTF0_20260123
["timestamp","ask_amount","ask_price","bid_price","bid_amount"]
[1769136467520,3.35659275,128.47,128.41,10.28398649]
[1769136468124,0.05986296,128.45,128.41,7.0162]
[1769136468521,3.41645571,128.45,128.41,7.0162]
[1769136470523,3.41645571,128.45,128.4,200.243324]
[1769136470728,3.41645571,128.45,128.4,196.97553751]
[1769136471726,3.41645571,128.45,128.38,3.26778649]
[1769136472532,3.35659275,128.43,128.38,3.26778649]
[1769136473231,0.05196596,128.42,128.38,3.26778649]
[1769136491557,3.52897392,128.42,128.36,3.15685528]
[1769136491760,5.59974733,128.42,128.36,3.15685528]
[1769136498462,3.47700796,128.41,128.36,3.15685528]
[1769136498664,3.47700796,128.41,128.35,7.0195]
[1769136498865,3.47700796,128.41,128.35,10.17635528]
[1769136499252,3.47700796,128.41,128.36,3.15685528]
[1769136499662,0.05704807,128.4,128.36,3.15685528]
[1769136504971,5.60482944,128.4,128.34,3.15685528]
[1769136505467,5.54778137,128.4,128.34,3.15685528]
[1769136505667,0.05086861,128.38,128.34,3.15685528]
[1769136509167,3.47700796,128.41,128.34,3.15685528]
[1769136509370,5.54778137,128.41,128.35,3.20630562]
[1769136514177,3.3780629,128.4,128.35,3.20630562]
[1769136518085,2.07077341,128.39,128.35,3.20630562]
[1769136520879,5.44883631,128.39,128.35,0.04945034]
[1769136521075,3.3780629,128.38,128.33,3.29412485]
[1769136521271,3.43410116,128.38,128.33,3.29412485]
[1769136521872,2.07077341,128.37,128.32,7.0217]
[1769136522078,5.44883631,128.37,128.33,3.29412485]
[1769136522388,2.07077341,128.37,128.33,3.29412485]
[1769136522682,0.05603826,128.38,128.33,3.29412485]
[1769136527188,3.3780629,128.42,128.35,3.29412485]
[1769136527391,5.4519587,128.42,128.35,3.29412485]
[1769136528487,3.3780629,128.41,128.37,0.04924806]
[1769136531689,3.3780629,128.41,128.35,3.29412485]
[1769136531884,3.3780629,128.41,128.34,7.021]
[1769136532091,3.3780629,128.39,128.34,10.31512485]
[1769136533488,3.3780629,128.39,128.35,3.29412485]
[1769136533791,0.04972482,128.38,128.35,3.29412485]
[1769136534794,0.04972482,128.38,128.34,7.021]
[1769136536588,3.42778772,128.38,128.33,3.29412485]
[1769136537194,0.04972482,128.38,128.33,5.36802065]
[1769136537395,0.04972482,128.38,128.34,3.29412485]
[1769136539090,0.04972482,128.38,128.35,3.29412485]
[1769136553916,0.04972482,128.38,128.34,7.0208]
[1769136554110,3.33724629,128.38,128.34,7.0208]
[1769136554717,3.33724629,128.38,128.33,3.42755442]
[1769136556922,5.41114209,128.38,128.33,3.42755442]
[1769136557617,3.28752147,128.37,128.33,3.42755442]
[1769136557809,3.28752147,128.37,128.32,7.0219]
[1769136557810,2.0738958,128.36,128.32,3.42755442]
[1769136558014,3.28752147,128.37,128.32,3.42755442]
[1769136558217,3.28752147,128.41,128.34,3.42755442]
[1769136558519,2.0738958,128.4,128.34,3.42755442]
[1769136558824,5.36141727,128.4,128.34,3.42755442]
[1769136559215,3.28752147,128.39,128.34,3.42755442]
[1769136559724,3.28752147,128.39,128.35,0.05114068]
[1769136567031,5.36141727,128.38,128.32,3.42755442]
[1769136570529,3.28752147,128.37,128.32,3.42755442]
[1769136584141,3.28167269,128.4,128.32,3.42755442]
[1769136584343,2.0738958,128.39,128.32,3.42755442]
[1769136584639,3.28167269,128.4,128.34,3.2932806]
[1769136584835,0.04944747,128.37,128.34,3.2932806]
[1769136591744,0.04944747,128.37,128.32,3.2932806]
[1769136593652,0.04944747,128.37,128.33,0.05002289]
[1769136594148,3.33112016,128.37,128.33,0.05002289]
[1769136597352,3.33112016,128.37,128.3,10.06489442]
[1769136597353,3.28167269,128.36,128.3,10.06489442]
[1769136598659,0.05453052,128.34,128.3,10.06489442]
[1769136599451,0.05453052,128.34,128.31,3.2932806]
[1769136611770,0.05453052,128.34,128.31,8.06e-05]
[1769136616170,0.05453052,128.34,128.3,10.06489442]
[1769136616972,3.38520043,128.34,128.3,10.06489442]
[1769136617166,2.07343533,128.33,128.3,10.06489442]
[1769136626980,0.05453052,128.34,128.31,3.08452319]
[1769136627386,0.05453052,128.34,128.31,3.13387396]
[1769136628780,0.05453052,128.34,128.31,0.04935077]
[1769136628988,5.45863576,128.34,128.3,10.06489442]
[1769136629488,2.07343533,128.32,128.28,3.08452319]
[1769136630087,5.40410524,128.32,128.27,207.32161893]
[1769136630386,0.05113374,128.31,128.27,210.40614212]
[1769136632886,0.05113374,128.31,128.28,0.04905078]
[1769136634090,0.05113374,128.31,128.28,3.14048687]
[1769136644596,2.07343533,128.33,128.28,3.14048687]
[1769136644996,3.39534067,128.34,128.28,3.14048687]
[1769136645188,5.468776,128.34,128.28,3.14048687]
[1769136645896,0.05785191,128.32,128.28,3.14048687]
[1769136664113,3.51404698,128.32,128.28,3.14048687]
[1769136664307,3.51404698,128.32,128.24,7.026]
[1769136664706,3.45619507,128.32,128.24,7.026]
[1769136665014,12.55427789,128.32,128.23,25.22291006]
[1769136665314,5.75490239,128.3,128.2,2.07568282]
[1769136665511,0.05677552,128.29,128.2,2.07568282]
[1769136665818,5.75490239,128.3,128.2,2.07568282]
[1769136666117,0.05454022,128.26,128.2,2.07568282]
[1769136666315,12.77820239,128.3,128.21,7.0279]
[1769136666809,12.77820239,128.3,128.21,30.66821962]
[1769136667618,0.05762181,128.27,128.21,30.66821962]
[1769136668015,0.05762181,128.27,128.2,2.07568282]
[1769136668214,0.05762181,128.27,128.23,0.05973738]
[1769136680537,3.76411149,128.27,128.23,0.05973738]
[1769136680741,5.83979431,128.27,128.23,0.05973738]
[1769136680942,3.76411149,128.27,128.23,0.05973738]
[1769136681239,0.05762181,128.27,128.23,0.05973738]
[1769136684945,3.76411149,128.27,128.23,0.05973738]
[1769136685546,5.83979431,128.27,128.23,0.05973738]
[1769136693161,10.72938968,128.31,128.23,0.05973738]
[1769136693452,2.07568282,128.3,128.23,2.1354202]
[1769136693635,2.07568282,128.3,128.23,2.07568282]
[1769136694046,5.7821725,128.3,128.23,2.07568282]
[1769136694750,3.70648968,128.3,128.23,2.07568282]
[1769136695851,3.70648968,128.3,128.23,9.10248282]
[1769136696652,5.7821725,128.32,128.25,2.07568282]
[1769136698452,3.70648968,128.31,128.25,2.07568282]
[1769136700751,3.70648968,128.31,128.24,7.0262]
[1769136702455,2.07568282,128.3,128.24,7.0262]
[1769136703157,0.05278848,128.28,128.26,0.05771085]
[1769136719470,3.75927816,128.28,128.22,7.0272]
[1769136722072,3.67763426,128.27,128.22,7.0272]
[1769136722467,3.67763426,128.27,128.2,7.0283]
[1769136723167,0.05379007,128.25,128.2,7.0283]
[1769136736182,2.07654177,128.28,128.2,7.0283]
[1769136736383,5.78107106,128.28,128.2,7.0283]
[1769136737281,3.70452929,128.27,128.2,7.0283]
[1769136744295,2.07654177,128.26,128.2,7.0283]
[1769136744493,5.78107106,128.26,128.2,7.0283]
[1769136745193,0.04975831,128.24,128.22,0.05065475]
[1769136798842,0.04975831,128.24,128.17,1.35704258]
[1769136798843,2.07780819,128.23,128.17,1.35704258]
[1769136799135,2.07780819,128.21,128.13,83.50311657]
[1769136799341,2.07780819,128.21,128.14,1.35741311]
[1769136800146,0.05164165,128.19,128.14,25.12549957]
[1769136801638,0.05164165,128.19,128.15,0.04931344]
[1769136806157,5.75701011,128.21,128.15,0.04931344]
[1769136807456,0.05263264,128.19,128.15,0.04931344]
[1769136807756,5.75701011,128.21,128.15,0.04931344]
[1769136808856,3.67920192,128.26,128.15,2.12712163]
[1769136809057,5.75701011,128.24,128.17,2.07780819]
[1769136810351,3.67920192,128.26,128.19,0.05201286]
[1769136810657,5.75701011,128.26,128.19,0.05201286]
[1769136816064,3.67920192,128.25,128.19,0.05201286]
[1769136820170,3.67920192,128.25,128.19,7.08101286]
[1769136822572,3.67920192,128.25,128.19,9.15882105]
[1769136825473,3.67920192,128.25,128.2,7.0284]
[1769136833572,3.67920192,128.25,128.21,7.028]
[1769136834275,3.67920192,128.25,128.22,0.05823288]
[1769136834473,3.67920192,128.27,128.22,0.05823288]
[1769136834777,5.75689696,128.27,128.21,7.028]
[1769136835170,5.75689696,128.27,128.23,0.05701106]
[1769136838584,3.67920192,128.26,128.23,0.05701106]
[1769136839073,1.92e-06,128.26,128.23,0.05701106]
[1769136840379,1.92e-06,128.26,128.23,7.08391106]
[1769136840775,9.696e-05,128.27,128.23,7.08391106]
[1769136842580,9.696e-05,128.27,128.23,0.05701106]
[1769136842776,3.701e-05,128.27,128.23,0.05701106]
[1769136843078,3.205e-05,128.27,128.23,0.05701106]
[1769136843989,3.205e-05,128.27,128.24,7.0264]
[1769136845886,6.677e-05,128.28,128.24,7.0264]
[1769136846088,2.07776181,128.28,128.24,7.0264]
[1769136846489,2.07769504,128.29,128.24,7.0264]
[1769136847189,2.07769504,128.29,128.25,0.05256669]
[1769136848390,3.16483472,128.28,128.25,0.05256669]
[1769136848590,3.16483472,128.28,128.22,7.0273]
[1769136848789,3.16483472,128.26,128.22,7.0273]
[1769136849285,3.472e-05,128.26,128.22,7.0273]
[1769136849690,3.472e-05,128.26,128.23,7.0268]
[1769136849989,3.472e-05,128.26,128.23,7.08181964]
[1769136850190,3.472e-05,128.26,128.23,0.05501964]
[1769136865204,1.00429419,128.28,128.23,0.05501964]
[1769136865503,1.00429419,128.28,128.23,3.4813096]
[1769136868405,2.07769504,128.29,128.23,3.4813096]
[1769136868604,3.08198923,128.29,128.23,3.4813096]
[1769136868804,1.00429419,128.28,128.23,3.4813096]
[1769136894926,3.08166722,128.28,128.23,3.4813096]
[1769136905042,0.05084661,128.27,128.23,3.4813096]
[1769136908733,0.05084661,128.27,128.19,2.07737303]
[1769136909136,10.10616722,128.28,128.19,2.07737303]
[1769136909737,2.07737303,128.26,128.2,7.0285]
[1769136909939,2.07737303,128.26,128.22,0.05737573]
[1769136910140,2.07737303,128.24,128.17,2.07737303]
[1769136910536,5.41354992,128.24,128.15,128.79780838]
[1769136910735,5.41354992,128.24,128.17,3.65060215]
[1769136912041,2.07737303,128.24,128.18,3.65060215]
[1769136912545,0.05347998,128.22,128.2,3.65060215]
[1769136914949,0.05347998,128.22,128.19,0.05612191]
[1769136915650,2.13085301,128.22,128.18,3.65060215]
[1769136927569,5.4670299,128.22,128.18,3.65060215]
[1769136928560,5.4670299,128.22,128.16,10.68130215]
[1769136928759,2.07737303,128.2,128.16,3.65060215]
[1769136928962,3.33617689,128.21,128.16,3.65060215]
[1769136929464,0.05560628,128.2,128.16,3.65060215]
[1769136935078,0.05560628,128.2,128.13,33.75740796]
[1769136935079,3.6530368,128.19,128.13,33.75740796]
[1769136935382,3.6530368,128.19,128.14,3.44967178]
[1769136935778,0.05525417,128.18,128.14,3.44967178]
[1769136944985,2.1326272,128.18,128.14,3.44967178]
[1769136954901,0.05525417,128.18,128.14,3.44967178]
[1769136957404,0.05525417,128.18,128.15,0.05215342]
[1769136961904,7.0288,128.2,128.15,0.05215342]
[1769136961905,5.25937584,128.21,128.15,3.34942434]
[1769136963406,0.0508585,128.19,128.15,3.34942434]
[1769136964809,5.49040685,128.23,128.16,3.19006116]
[1769136965110,3.41009422,128.25,128.17,3.19006116]
[1769136965803,2.08031263,128.24,128.17,3.19006116]
[1769136966116,2.08031263,128.24,128.2,0.0598619]
[1769136966311,5.49040685,128.24,128.2,0.0598619]
[1769136968006,5.49040685,128.24,128.19,3.19006116]
[1769136968216,0.05315802,128.23,128.19,3.19006116]
[1769136971212,0.05315802,128.23,128.16,3.19006116]
[1769136971213,3.46325224,128.23,128.16,3.19006116]
[1769136972217,2.08031263,128.22,128.16,3.19006116]
[1769136972913,0.05323286,128.2,128.16,3.19006116]
[1769136973519,0.05323286,128.2,128.16,10.22076116]
[1769136973821,2.08031263,128.22,128.17,3.19006116]
[1769136974017,2.08031263,128.22,128.17,3.24649439]
[1769136987932,2.08031263,128.22,128.18,3.19006116]
[1769136988627,2.08031263,128.24,128.19,3.19006116]
[1769136989426,2.08031263,128.24,128.2,0.05035093]
[1769136995540,5.50521563,128.24,128.2,0.05035093]
[1769137001754,2.08031263,128.24,128.2,3.23452352]
[1769137002039,5.50521563,128.24,128.2,0.05035093]
[1769137002244,3.424903,128.23,128.2,0.05035093]
[1769137002438,2.08031263,128.22,128.18,3.18417259]
[1769137003846,0.04922194,128.21,128.18,3.18417259]
[1769137029580,0.04922194,128.21,128.17,10.50117101]
[1769137029978,0.04922194,128.21,128.18,3.52653654]
[1769137056298,0.04922194,128.21,128.18,10.55613654]
[1769137056497,5.3764079,128.24,128.19,3.40735463]
[1769137057997,3.26716175,128.26,128.2,3.40735463]
[1769137058197,5.34576123,128.26,128.2,3.40735463]
[1769137058793,5.34576123,128.26,128.22,0.05962761]
[1769137076014,3.26716175,128.25,128.22,0.05962761]
[1769137076714,3.26716175,128.25,128.2,10.43585463]
[1769137076913,3.32460726,128.25,128.2,10.43585463]
[1769137078916,5.40295857,128.25,128.2,10.43585463]
[1769137095622,3.32460726,128.25,128.2,10.43585463]
[1769137095830,5.40295857,128.25,128.2,10.43585463]
[1769137097529,5.40295857,128.25,128.2,3.40735463]
[1769137099433,2.07835131,128.21,128.17,3.28162546]
[1769137099637,5.44421091,128.22,128.17,3.28162546]
[1769137100129,0.05491738,128.21,128.17,3.28162546]
[1769137101737,0.05491738,128.21,128.18,3.34097309]
[1769137147373,7.0259,128.25,128.18,3.34097309]
[1769137147668,12.42950265,128.25,128.18,3.34097309]
[1769137148271,5.40360265,128.23,128.18,3.34097309]
[1769137148572,5.40360265,128.23,128.18,3.28162546]
[1769137148965,5.40360265,128.23,128.19,0.05266337]
[1769137151072,12.43080265,128.23,128.19,0.05266337]
[1769137151263,12.43080265,128.23,128.18,3.28162546]
[1769137151464,0.05232321,128.22,128.18,3.28162546]
[1769137158673,5.40360265,128.21,128.15,3.1978474]
[1769137159281,0.05953012,128.19,128.15,3.1978474]
[1769137178396,2.13845462,128.19,128.15,3.1978474]
[1769137182098,9.16785462,128.19,128.15,3.1978474]
[1769137184496,9.16785462,128.19,128.11,7.0335]
[1769137184804,9.1083245,128.19,128.11,7.0335]
[1769137185202,0.05847388,128.16,128.11,7.0335]
[1769137186603,0.05847388,128.16,128.12,2.70864715]
[1769137201116,2.08056968,128.15,128.1,2.70864715]
[1769137201300,2.08056968,128.13,128.03,109.474]
[1769137201506,2.08056968,128.13,128.05,3.43883048]
[1769137201906,0.05425357,128.1,128.05,3.43883048]
[1769137202111,2.08056968,128.13,128.05,3.43883048]
[1769137202418,2.08056968,128.13,128.06,0.04954042]
[1769137202624,2.08056968,128.13,128.06,24.045817]
[1769137203318,2.08056968,128.13,128.06,31.082017]
[1769137204125,3.52652075,128.12,128.06,31.082017]
[1769137204519,2.08056968,128.13,128.06,31.082017]
[1769137209931,2.08056968,128.13,128.07,7.0356]
[1769137210635,2.08056968,128.13,128.09,0.05485567]
[1769137213229,2.08056968,128.11,128.09,0.05485567]
[1769137214633,3.52652075,128.13,128.09,0.05485567]
[1769137214824,5.60709043,128.13,128.09,0.05485567]
[1769137223133,5.60709043,128.13,128.07,7.0356]
[1769137223134,2.08056968,128.11,128.07,7.0356]
[1769137223326,6.968e-05,128.11,128.07,7.0356]
[1769137224436,6.968e-05,128.11,128.08,0.05492067]
[1769137230546,6.968e-05,128.11,128.08,7.08992067]
[1769137241555,6.968e-05,128.11,128.09,7.0346]
[1769137241943,2.08056968,128.12,128.09,7.0346]
[1769137242144,2.979e-05,128.13,128.09,7.0346]
[1769137242344,6.968e-05,128.12,128.09,7.0346]
[1769137242864,6.968e-05,128.12,128.09,10.24020762]
[1769137249456,3.46096021,128.17,128.12,3.20560762]
[1769137249659,2.08056968,128.16,128.1,3.20560762]
[1769137249853,5.54152989,128.16,128.1,3.20560762]
[1769137250256,6.021e-05,128.16,128.12,3.20560762]
[1769137251666,6.021e-05,128.16,128.12,10.23830762]
[1769137252557,6.021e-05,128.16,128.13,0.04936748]
[1769137258363,2.08056968,128.17,128.13,0.04936748]
[1769137259768,5.54152989,128.17,128.13,0.04936748]
[1769137262867,3.46096021,128.17,128.13,0.04936748]
[1769137264470,262.2306788,128.19,128.13,3.37903728]
[1769137264670,264.31141551,128.19,128.13,3.37903728]
[1769137265673,2.08073671,128.21,128.13,3.37903728]
[1769137265872,2.08073671,128.21,128.13,10.41063728]
[1769137266070,2.08073671,128.21,128.14,3.19765419]
[1769137266465,3.26734767,128.2,128.14,3.19765419]
[1769137266667,3.26734767,128.2,128.16,0.05552354]
[1769137270275,7.0267,128.23,128.16,0.05552354]
[1769137270276,3.26734767,128.22,128.16,3.25317773]
[1769137270770,3.26734767,128.22,128.16,5.33391444]
[1769137274281,3.26734767,128.22,128.16,3.25317773]
[1769137287988,3.26734767,128.22,128.17,5.2783909]
[1769137288192,3.26734767,128.23,128.18,3.19765419]
[1769137288893,3.26734767,128.23,128.19,0.05699579]
[1769137291586,3.26734767,128.23,128.17,2.08073671]
[1769137291786,0.05539509,128.22,128.17,5.26733987]
[1769137294590,0.05539509,128.22,128.18,3.18660316]
[1769137303894,3.5161868,128.22,128.16,5.26733987]
[1769137304705,3.5161868,128.22,128.17,3.18660316]
[1769137307906,0.05539509,128.22,128.17,3.18660316]
[1769137317420,0.05539509,128.22,128.19,3.18660316]
[1769137317813,7.025,128.26,128.19,3.18660316]
[1769137318011,7.025,128.26,128.19,3.24385907]
[1769137318417,7.025,128.26,128.21,3.18660316]
[1769137319222,7.025,128.26,128.22,0.05031863]
[1769137320218,3.46079171,128.27,128.22,0.05031863]
[1769137322223,3.46079171,128.27,128.22,3.21060062]
[1769137325227,3.43235818,128.29,128.23,3.40981724]
[1769137325927,3.43235818,128.29,128.25,0.04956416]
[1769137331625,7.021,128.33,128.28,2.07728272]
[1769137331836,7.021,128.33,128.26,5.48709996]
[1769137332724,7.021,128.33,128.28,0.05977598]
[1769137333631,0.73163207,128.32,128.28,0.05977598]
[1769137338635,2.07728272,128.31,128.28,0.05977598]
[1769137339636,2.13498293,128.31,128.27,3.40981724]
[1769137346644,0.73163207,128.3,128.25,3.40981724]
[1769137346841,2.07728272,128.27,128.23,3.40981724]
[1769137347345,0.05890981,128.26,128.23,3.40981724]
[1769137348138,0.05890981,128.26,128.23,3.4615485]
[1769137352149,2.07728272,128.27,128.23,3.4615485]
[1769137352851,2.07728272,128.28,128.23,3.4615485]
[1769137355550,116.41985639,128.38,128.23,3.4615485]
[1769137355551,0.73032722,128.33,128.25,3.2196434]
[1769137355854,2.07728272,128.31,128.25,3.2196434]
[1769137356855,2.07728272,128.31,128.27,0.05561765]
[1769137357556,2.07728272,128.33,128.27,3.27526105]
[1769137358056,4.88489266,128.33,128.27,3.27526105]
[1769137360051,7.0207,128.34,128.27,3.27526105]
[1769137360257,2.07728272,128.33,128.27,3.27526105]
[1769137361455,4.88489266,128.33,128.27,3.27526105]
[1769137361752,2.07728272,128.31,128.27,3.27526105]
[1769137365949,4.88489266,128.33,128.27,3.27526105]
[1769137369257,2.80760994,128.32,128.27,3.27526105]
[1769137369454,2.07728272,128.29,128.25,3.2196434]
[1769137370656,2.07728272,128.29,128.26,0.05413532]
[1769137380549,280.48929639,128.35,128.26,0.05413532]
[1769137380550,2.07728272,128.31,128.26,3.27377872]
[1769137380752,4.88489266,128.34,128.27,3.2196434]
[1769137381560,4.88489266,128.34,128.29,0.05411127]
[1769137382753,4.88489266,128.34,128.29,3.42571972]
[1769137384859,2.07728272,128.34,128.29,3.42571972]
[1769137385061,280.48929639,128.35,128.29,3.42571972]
[1769137385460,4.88434039,128.36,128.29,3.42571972]
[1769137386260,2.07728272,128.34,128.29,3.42571972]
[1769137386662,2.07728272,128.34,128.29,3.37160845]
[1769137386862,2.07506914,128.34,128.29,3.37160845]
[1769137387471,2.07506914,128.34,128.3,0.05563553]
[1769137391765,7.24205639,128.41,128.25,3.31770518]
[1769137391766,2.75142214,128.31,128.25,3.31770518]
[1769137393073,0.04999709,128.29,128.25,3.31770518]
[1769137394678,0.04999709,128.29,128.26,0.04913969]
[1769137394981,2.80141923,128.29,128.26,0.04913969]
[1769137396073,0.04999709,128.29,128.26,0.04913969]
[1769137396379,2.80141923,128.29,128.26,0.04913969]
[1769137397580,0.04999709,128.29,128.26,0.04913969]
[1769137398191,2.80141923,128.29,128.23,3.31770518]
[1769137398387,4.87648837,128.29,128.23,3.31770518]
[1769137400087,4.87648837,128.29,128.25,0.05535961]
[1769137414003,2.80141923,128.29,128.25,0.05535961]
[1769137414201,4.87648837,128.29,128.25,0.05535961]
[1769137416205,0.04999709,128.29,128.25,3.3988841]
[1769137416395,4.8278583,128.31,128.25,3.3988841]
[1769137417102,2.75278916,128.31,128.25,3.3988841]
[1769137417603,2.75278916,128.31,128.26,3.34352449]
[1769137417796,0.05073729,128.29,128.26,3.34352449]
[1769137418195,0.05073729,128.29,128.25,0.05535961]
[1769137418998,2.80352645,128.29,128.25,0.05535961]
[1769137432494,4.87859559,128.29,128.25,0.05535961]
[1769137432699,2.75278916,128.28,128.25,0.05535961]
[1769137440017,2.75278916,128.28,128.22,3.34352449]
[1769137440410,4.8278583,128.27,128.22,3.34352449]
[1769137441013,0.05919045,128.26,128.22,3.34352449]
[1769137441219,4.8278583,128.25,128.2,3.34352449]
[1769137446912,2.75278916,128.25,128.2,3.34352449]
[1769137467250,2.13712064,128.26,128.2,3.34352449]
[1769137467543,0.05919045,128.26,128.2,3.34352449]
[1769137473847,2.81762773,128.26,128.2,3.34352449]
[1769137474046,4.89555792,128.26,128.2,3.34352449]
[1769137474744,11.92045792,128.26,128.2,3.34352449]
[1769137476047,2.75843728,128.25,128.2,3.34352449]
[1769137477946,2.75843728,128.25,128.18,3.24103161]
[1769137478640,0.05051956,128.23,128.18,3.24103161]
[1769137486552,0.05051956,128.23,128.18,10.26993161]
[1769137486849,0.05051956,128.23,128.19,3.24103161]
[1769137487250,0.05051956,128.23,128.19,3.29903461]
[1769137488656,109.2621,128.28,128.19,3.29903461]
[1769137488657,4.83636747,128.27,128.2,3.24103161]
[1769137489553,4.83636747,128.27,128.21,3.24103161]
[1769137489853,0.05375957,128.25,128.21,3.24103161]
[1769137490654,4.83636747,128.27,128.21,3.24103161]
[1769137490857,7.0239,128.28,128.22,3.29623588]
[1769137491558,9.83285684,128.28,128.22,3.29623588]
[1769137491961,2.80895684,128.28,128.22,3.29623588]
[1769137493349,0.05369945,128.26,128.22,3.29623588]
[1769137493548,2.80895684,128.28,128.22,3.29623588]
[1769137496267,2.80895684,128.28,128.23,3.24103161]
[1769137496469,2.07793019,128.29,128.23,3.24103161]
[1769137496864,2.07793019,128.29,128.24,3.24103161]
[1769137497268,2.07793019,128.29,128.25,0.05172093]
[1769137498570,2.07793019,128.29,128.25,3.29275254]
[1769137508879,2.07685169,128.28,128.25,3.29275254]
[1769137513883,2.07685169,128.28,128.25,0.05172093]
[1769137541411,2.80265477,128.29,128.25,0.05172093]
[1769137543505,2.80230922,128.27,128.22,3.20462444]
[1769137543702,2.80230922,128.27,128.2,213.07463]
[1769137543906,2.80230922,128.27,128.21,3.20462444]
[1769137544712,4.82743998,128.26,128.21,3.20462444]
[1769137548419,4.82743998,128.26,128.2,209.87000556]
[1769137548420,2.07685169,128.24,128.2,202.84230556]
[1769137548611,4.82743998,128.24,128.2,202.84230556]
[1769137552314,4.82743998,128.24,128.21,0.05879495]
[1769137552516,2.75058829,128.24,128.21,0.05879495]
[1769137553514,2.07685169,128.26,128.21,0.05879495]
[1769137553710,4.82743998,128.26,128.21,0.05879495]
[1769137555018,4.82743998,128.26,128.21,3.26341939]
[1769137555220,2.75058829,128.26,128.21,3.26341939]
[1769137561134,4.82743998,128.28,128.21,3.26341939]
[1769137561536,2.75058829,128.27,128.21,3.26341939]
[1769137562937,2.75058829,128.27,128.22,2.07685169]
[1769137564437,2.75058829,128.27,128.22,5.55107426]
[1769137566241,0.055449,128.26,128.22,5.55107426]
[1769137568843,0.055449,128.26,128.22,5.55100935]
[1769137577738,2.74757943,128.29,128.23,3.41371121]
[1769137578440,2.74757943,128.29,128.24,3.41371121]
[1769137579249,2.74757943,128.29,128.25,0.05104773]
[1769137584636,2.74757943,128.33,128.25,3.46475894]
[1769137584949,2.74757943,128.32,128.25,5.49049799]
[1769137585340,2.74757943,128.32,128.28,0.05747931]
[1769137591747,2.74757943,128.32,128.28,3.49270519]
[1769137592147,2.74947105,128.34,128.28,3.49270519]
[1769137592555,0.04930963,128.31,128.28,3.49270519]
[1769137593053,2.74947105,128.34,128.28,3.49270519]
[1769137594058,2.74947105,128.34,128.28,10.51600519]
[1769137595354,0.04916726,128.32,128.28,10.51600519]
[1769137596055,2.74947105,128.34,128.29,3.43522588]
[1769137597259,0.05901797,128.33,128.29,3.43522588]
[1769137605472,0.05901797,128.33,128.29,10.45812588]
[1769137605764,0.05901797,128.33,128.3,3.43522588]
[1769137605966,2.07678678,128.36,128.3,3.43522588]
[1769137606165,2.07678678,128.36,128.3,10.45752588]
[1769137606673,2.07678678,128.38,128.32,3.49612561]
[1769137607273,2.07678678,128.38,128.34,0.05652394]
[1769137611171,2.07678678,128.39,128.34,0.05652394]
[1769137611563,7.0157,128.43,128.34,3.55264955]
[1769137611772,2.07678678,128.42,128.34,3.55264955]
[1769137611973,2.07678678,128.42,128.34,3.49612561]
[1769137612278,2.07678678,128.42,128.37,0.05796291]
[1769137614176,2.07678678,128.4,128.37,0.05796291]
[1769137614580,2.07678678,128.4,128.34,3.49612561]
[1769137614977,2.07678678,128.4,128.37,0.055525]
[1769137620572,2.07678678,128.4,128.34,3.49612561]
[1769137621781,0.05063848,128.38,128.36,0.05487428]
[1769137629888,2.12742526,128.38,128.33,3.49612561]
[1769137630791,2.12742526,128.38,128.31,3.49612561]
[1769137630997,2.07441862,128.37,128.31,3.49612561]
[1769137631197,2.07441862,128.37,128.33,0.05036298]
[1769137637601,2.07441862,128.39,128.33,3.54648859]
[1769137641207,2.07441862,128.41,128.34,3.49612561]
[1769137641909,2.07441862,128.41,128.36,0.05200538]
[1769137660519,2.07441862,128.42,128.36,3.54813099]
[1769137660721,2.07441862,128.44,128.36,3.54813099]
[1769137661117,2.07441862,128.42,128.36,3.49612561]
[1769137661312,2.07441862,128.42,128.36,10.51502561]
[1769137661518,2.07441862,128.42,128.39,0.05948893]
[1769137662522,7.0145,128.45,128.39,0.05948893]
[1769137663821,7.0135,128.47,128.39,0.05948893]
[1769137664025,2.07441862,128.46,128.39,0.05948893]
[1769137664232,2.07441862,128.46,128.38,3.49612561]
[1769137664530,2.07441862,128.46,128.41,0.05688813]
[1769137675042,7.0135,128.47,128.41,0.05688813]
[1769137676340,7.0135,128.47,128.41,2.13130675]
[1769137677642,7.0135,128.47,128.41,0.05688813]
[1769137677843,7.0135,128.47,128.41,2.13130675]
[1769137678240,7.0139,128.46,128.41,0.05688813]
[1769137680244,7.0144,128.45,128.39,2.07441862]
[1769137681141,7.0144,128.45,128.38,3.49612561]
[1769137681547,7.0144,128.45,128.4,0.05752716]
[1769137696152,9.0849307,128.47,128.4,0.05752716]
[1769137712372,9.0849307,128.47,128.4,3.58209684]
[1769137714671,7.0139,128.46,128.4,0.05752716]
[1769137715770,9.0858307,128.45,128.4,0.05752716]
[1769137716173,9.0858307,128.45,128.37,5.59600038]
[1769137716574,9.0858307,128.45,128.41,0.05547562]
[1769137720978,9.0858307,128.45,128.37,5.59600038]
[1769137723382,9.0858307,128.45,128.38,3.52456968]
[1769137729282,7.0144,128.45,128.39,2.0714307]
[1769137729483,7.0144,128.45,128.39,5.59600038]
[1769137729783,9.0850307,128.47,128.4,3.52456968]
[1769137737388,0.05787254,128.45,128.42,0.05403548]
[1769137744402,0.05787254,128.45,128.39,5.59600038]